Cogmind - Beta 13 @@@ ROGUE MODE // 2024.04.25 @ 20:40:51 Player: GregoriusTechneticies Result: Destroyed by Y-45 Defender with Beam Rifle Performance ------------- Evolutions (1) 500 Regions Visited (2) 400 Robots Destroyed (27) 135 Value Destroyed (396) 396 Prototype IDs (0) 0 Alien Tech Used (0) 0 Bonus (0) 0 TOTAL SCORE: 1431 Bonus ------- None Cogmind --------- Core Integrity 0/400 Matter 249/300 Energy 160/160 System Corruption 0% Temperature Cool (9) Movement Core (300) Ox5 Location -9/Materials Parts ------- > --- POWER (1) -------- Light Nuclear Core > --- PROPULSION (2) --- (None) > --- UTILITY (4) ------ Medium Storage Unit > --- WEAPON (2) ------- Heavy Assault Rifle > --- INVENTORY (10) --- High-capacity Battery (250) High-capacity Matter Pod (200) Machine Analyzer Improved Terrain Scanner Terrain Scan Processor Seismic Detector Tractor Beam Light Assault Rifle Hammer Peak State ------------ > --- POWER ------------ Light Nuclear Core > --- PROPULSION ------- Wheel Wheel > --- UTILITY ---------- Medium Storage Unit Seismic Detector > --- WEAPON ----------- Light Assault Rifle Light Assault Rifle > --- INVENTORY -------- Light Ion Engine Wheel High-capacity Battery High-capacity Matter Pod Machine Analyzer Improved Terrain Scanner Terrain Scan Processor Seismic Detector Tractor Beam Hammer [Rating: 10] Favorites ----------- Power Light Ion Engine Engine Light Ion Engine Power Core Light Nuclear Core Propulsion Wheel Treads Light Treads Leg Aluminum Leg Wheel Wheel Flight Unit Flight Unit Utility Seismic Detector Device Seismic Detector Storage Medium Storage Unit Weapon Assault Rifle Energy Gun Medium Laser Ballistic Gun Assault Rifle Impact Weapon Hammer Build | -11 -10 -9 ------- Run | Yrd Mat Mat Slots Evolved 2 | . . 2 Power . | . . . Propulsion . | . . . Utility 2 | . . 2 Weapon . | . . . Parts Attached 30 | 13 7 10 Power 3 | 1 . 2 Engine 1 | 1 . . Core 2 | . . 2 Reactor . | . . . Propulsion 12 | 6 3 3 Treads 2 | 1 . 1 Leg 1 | 1 . . Wheel 8 | 4 3 1 Hover . | . . . Flight 1 | . . 1 Utility 5 | 4 1 . Device 3 | 3 . . Storage 2 | 1 1 . Processor . | . . . Hackware . | . . . Protection . | . . . Artifact . | . . . Weapon 10 | 2 3 5 Energy Gun 3 | 1 1 1 Energy Cannon . | . . . Ballistic Gun 6 | 1 2 3 Ballistic Cannon . | . . . Launcher . | . . . Special Weapon . | . . . Impact Weapon 1 | . . 1 Slashing Weapon . | . . . Piercing Weapon . | . . . Special Melee Weapon . | . . . Unidentified Prototypes . | . . . Parts Lost 8 | . . 8 Power 1 | . . 1 Propulsion 3 | . . 3 Utility 1 | . . 1 Weapon 3 | . . 3 Highest Loss Streak 6 | . . 6 To Critical Strikes . | . . . Average Slot Usage (%) 79 | . 100 57 Engine 7 | . 14 . Core 2 | . . 5 Wheel 20 | . 28 13 Device 9 | . 14 5 Storage 12 | . 14 11 Energy Gun 6 | . 12 . Ballistic Gun 17 | . 15 19 Naked Turns . | . . . Heaviest Build 21 | 13 19 21 Greatest Support 20 | 20 20 20 Greatest Overweight (x) 5 | 4 . 5 Average Overweight (x) . | . . . Largest Inventory Capacity 10 | 8 10 10 Average Capacity 9 | 7 9 10 Most Carried 10 | 8 10 10 Average Carried 7 | 4 9 9 Final Capacity 10 | 8 10 10 Final Carried 10 | 8 10 9 Class Distribution -------------------- 100% | Mutant Dominant Class ---------------- Mutant | -10/Materials Mutant | -9/Materials Resources | -11 -10 -9 ----------- Run | Yrd Mat Mat Matter Collected 922 | 455 306 161 Remotely 26 | 26 . . Salvage Created 868 | 344 245 279 Parts 61 | 27 12 22 Haulers Intercepted . | . . . Recyclers Shooed 1 | . 1 . Parts Field Recycled . | . . . Retrieved Matter . | . . . Parts Self-Destructed . | . . . Prevented . | . . . Kills | -11 -10 -9 ------- Run | Yrd Mat Mat Combat Hostiles Destroyed 10 | . 2 8 Guns 10 | . 2 8 Classes Destroyed 8 | 3 3 2 Worker 4 | 4 . . Builder 2 | . 2 . Tunneler 8 | 8 . . Recycler 2 | 1 1 . Mechanic 1 | . 1 . Swarmer 4 | . . 4 Grunt 2 | . 2 . Sentry 4 | . . 4 Best Kill Streak 6 | 4 3 6 Combat Bots Only 6 | . 2 6 Max Kills in Single Turn 1 | 1 1 1 Gunslinging . | . . . Exploded . | . . . Melee . | . . . Uniques/NPCs Destroyed . | . . . Combat | -11 -10 -9 -------- Run | Yrd Mat Mat Hostile Shots Fired 115 | . 13 102 Missed 20 | . 3 17 Damage Taken 1145 | . 128 1017 Core 446 | . 37 409 Absorbed by Shields . | . . . Core Remaining (%) 92 | 100 85 . Volleys Fired 105 | 37 23 45 Largest 2 | 2 2 2 Hottest 85 | 70 85 56 Shots Fired 201 | 74 46 81 Gun 201 | 74 46 81 Cannon . | . . . Launcher . | . . . Special . | . . . Kinetic 137 | 37 23 77 Thermal 64 | 37 23 4 Explosive . | . . . Electromagnetic . | . . . Robot Hit Streak 12 | 11 7 12 Robot Miss Streak 4 | 4 2 3 Penetration Max . | . . . Secondary Targets 3 | . . 3 Max Gunslinging Chain 1 | . . 1 Shots Hit Robots 128 | 44 28 56 Core Hits 43 | 14 10 19 Critical Kills . | . . . Critical Parts Destroyed . | . . . Critical Strikes 3 | 3 . . Burn 3 | 3 . . Melee Attacks 1 | . . 1 Impact 1 | . . 1 Slashing . | . . . Piercing . | . . . Sneak Attacks . | . . . Combat Hostiles . | . . . Follow-up Attacks . | . . . Damage Inflicted 1499 | 542 378 579 Guns 1499 | 542 378 579 Cannons . | . . . Explosions . | . . . Melee . | . . . Ramming . | . . . Kinetic 949 | 218 209 522 Thermal 550 | 324 169 57 Explosive . | . . . Electromagnetic . | . . . Impact . | . . . Slashing . | . . . Piercing . | . . . Highest Corruption . | . . . Average Corruption . | . . . Corruption Purged . | . . . Corruption Blocked . | . . . Overload Shots . | . . . Overflow Damage . | . . . Projectiles . | . . . Explosions . | . . . Melee . | . . . Knockbacks . | . . . Impact . | . . . Kinetic . | . . . Secondary . | . . . Self-Inflicted Damage . | . . . Shots . | . . . Rammed . | . . . Targets Rammed . | . . . Kicked . | . . . Crushed . | . . . Highest Temperature 160 | 27 160 26 Average Temperature 29 | 11 62 6 Received Heat Transfer 369 | . 72 297 Siege Activations . | . . . Robots Corrupted . | . . . Combat Hostiles . | . . . Parts Fried . | . . . Impact Corruptions . | . . . Robots Melted . | . . . Combat Hostiles . | . . . Parts Melted 3 | 2 . 1 Heat Transferred 1813 | 1184 481 148 Parts Sabotaged . | . . . Parts Stolen . | . . . Parts Stripped . | . . . Power Chain Reactions . | . . . Alert | -11 -10 -9 ------- Run | Yrd Mat Mat Peak Influence 284 | 65 125 284 Initial 52 | . . 52 Average 76 | 25 69 163 Maximum Alert Level 1 | . . 1 Low Security (%) 88 | 100 100 57 Level 1 11 | . . 42 Level 2 . | . . . Level 3 . | . . . Level 4 . | . . . Level 5 . | . . . High Security . | . . . Max Security . | . . . Squads Dispatched 2 | . 1 1 Investigation . | . . . Extermination . | . . . Reinforcement 2 | . 1 1 Assault . | . . . Garrison . | . . . Intercept . | . . . Searches Triggered . | . . . Construction Impeded . | . . . Haulers Reinforced . | . . . Active Scanning Responses . | . . . Cargo Convoy Interrupts . | . . . Stealth | -11 -10 -9 --------- Run | Yrd Mat Mat Distress Signals . | . . . Communications Jammed . | . . . Distress Signals . | . . . Times Spotted 18 | . 7 11 Peak Tracking Total 7 | . 4 7 Tactical Retreats 2 | . 1 1 Traps | -11 -10 -9 ------- Run | Yrd Mat Mat Traps Triggered . | . . . Indirectly . | . . . Trap Hack Attempts . | . . . Triggered . | . . . Disarmed . | . . . Reprogrammed 1 | . . 1 Reused . | . . . Traps Extracted . | . . . Installed . | . . . Triggered . | . . . Machines | -11 -10 -9 ---------- Run | Yrd Mat Mat Machines Disabled . | . . . Max in Single Turn . | . . . Machines Repaired . | . . . Machines Dismantled . | . . . Machines Sabotaged . | . . . Overloaded Fab Kills . | . . . Hacking | -11 -10 -9 --------- Run | Yrd Mat Mat Machines Accessed 7 | . 2 5 Terminals 7 | . 2 5 Fabricators . | . . . Repair Stations . | . . . Recycling Units . | . . . Scanalyzers . | . . . Garrison Access . | . . . Total Hacks 18 | . 5 13 Successful 9 | . 3 6 Failed 9 | . 2 7 Catastrophic 3 | . . 3 Database Lockouts . | . . . Manual 18 | . 5 13 Terminals 18 | . 5 13 Fabricators . | . . . Repair Stations . | . . . Recycling Units . | . . . Scanalyzers . | . . . Garrison Access . | . . . Terminal Hacks 5 | . 1 4 Level Access Points 2 | . 1 1 Branch Access Points 1 | . . 1 Terminal Index 1 | . . 1 Reprogram Traps 1 | . . 1 Fabricator Hacks . | . . . Repair Station Hacks . | . . . Recycling Unit Hacks . | . . . Scanalyzer . | . . . Garrison Access Hacks . | . . . Unauthorized Hacks 4 | . 2 2 Terminals 4 | . 2 2 Botnet 4 | . 2 2 Fabricators . | . . . Repair Stations . | . . . Recycling Units . | . . . Scanalyzers . | . . . Garrison Access . | . . . Data Cores Recovered . | . . . Used . | . . . Hacking Detections 7 | . 2 5 Full Trace Events . | . . . Feedback Events . | . . . Feedback Blocked . | . . . Robot Schematics Acquired . | . . . Robots Built . | . . . Authchips . | . . . Time . | . . . Total Robot Build Rating . | . . . Part Schematics Acquired . | . . . Parts Built . | . . . Authchips . | . . . Time . | . . . Total Part Build Rating . | . . . Parts Repaired . | . . . Time . | . . . Parts Recycled . | . . . Recycled Matter . | . . . Retrieved Matter . | . . . Retrieved Components . | . . . Parts Scanalyzed . | . . . Part Schematics Acquired . | . . . Parts Damaged . | . . . Bothacking | -11 -10 -9 ------------ Run | Yrd Mat Mat Used RIF Installer . | . . . Robots Hacked . | . . . Non-combat . | . . . Combat . | . . . Robot Hacks Applied . | . . . Relay Couplers Released . | . . . Fabnet Peak Effective % . | . . . Robots Rewired . | . . . Allies Hacked . | . . . Hacks Repelled . | . . . Allies | -11 -10 -9 -------- Run | Yrd Mat Mat Total Allies . | . . . Largest Group . | . . . Highest-Rated Group . | . . . Highest-Rated Ally . | . . . Total Orders . | . . . Ally Attacks . | . . . Total Damage . | . . . Kills . | . . . Allies Corrupted . | . . . Allies Melted . | . . . Intel | -11 -10 -9 ------- Run | Yrd Mat Mat Robot Analysis Total . | . . . Derelict Logs Recovered . | . . . Drone Launches . | . . . Drone Recoveries . | . . . Exploration | -11 -10 -9 ------------- Run | Yrd Mat Mat Turns Passed 943 | 406 276 261 Spaces Moved 594 | 259 224 111 Core 21 | 18 . 3 Treads 12 | 9 . 3 Legs 11 | 11 . . Wheels 545 | 221 224 100 Hover . | . . . Flight 5 | . . 5 Fastest Speed 50 | 50 80 80 Average Speed 94 | 102 80 103 Slowest Speed 300 | 250 80 300 Overloaded Moves . | . . . Propulsion Burnouts . | . . . Robots Hopped . | . . . Cave-ins Triggered . | . . . Exploration Rate (%) 22 | 13 40 13 Regions Visited 2 Branch Regions . Pre-discovered Areas . | . . . Known Exits Taken 1 | . 1 . Unknown Exits Taken 1 | 1 . . Scrap Searched . | . . . Spaces Dug 1 | . . 1 Terrain Destroyed 1 | . . 1 Melee 1 | . . 1 Projectile . | . . . AOE . | . . . Terrain Rammed . | . . . Walls Destroyed . | . . . Machines Disabled . | . . . Actions | -11 -10 -9 --------- Run | Yrd Mat Mat Total 787 | 322 279 186 Wait 17 | . 8 9 Move 592 | 258 223 111 Hop . | . . . Pick Up 20 | 8 7 5 Fast Attach 13 | 10 1 2 Attach 4 | . . 4 Detach 1 | 1 . . Swap 13 | 3 6 4 Drop 21 | 5 11 5 Fire 105 | 37 23 45 Melee 1 | . . 1 Ram . | . . . Kick . | . . . Crush . | . . . Escape Stasis . | . . . Rewire . | . . . Trap . | . . . Miscellaneous . | . . . Route ------- -11/Scrapyard -10/Materials (discovered 3 exits: *Mat x3) -9/Materials (discovered 4 exits: Mat x3 / Min) History --------- Turn | Location | Event 51 | -11/Scrapyard | Discovered new exit (range 15) 407 | -11/Scrapyard | Entered Materials 408 | -10/Materials | Build established: Mutant 632 | -10/Materials | Identified exit to Materials 683 | -10/Materials | Entered another Materials area 683 | -9/Materials | Evolved 2 slots: Utility x2 763 | -9/Materials | Identified exit to Materials 763 | -9/Materials | Identified exit to Mines 818 | -9/Materials | Core integrity fell below 50% 860 | -9/Materials | Lost 6 parts (1p2n1u2w) 923 | -9/Materials | Core integrity fell below 20% 944 | -9/Materials | Destroyed by Y-45 Defender with Beam Rifle Last Messages --------------- 00843_ Acquired Hvy. Assault Rifle. 00851_ Dropped Beam Rifle. 00858_ Critical hit (Burn: +37). 00861_ ALERT: Hostiles spotted, dispatching reinforcements to Terminal M002. 00861_ Y-45 Defender destroyed. 00865_ Acquired Flight Unit. 00881_ Dropped Flight Unit. 00882_ Acquired Lgt. Treads. 00887_ Acquired 60 matter. 00889_ Dropped Lgt. Treads. 00889_ Acquired 17 matter. 00892_ Acquired Lgt. Assault Rifle. 00899_ Connecting with Terminal... >>Traps(Reprogram) Reprogrammed 1 Explosive Trap. 00911_ Critical hit (Burn: +37). 00925_ Wheel destroyed. 00935_ Hvy. Assault Rifle destroyed. 00939_ Y-45 Defender destroyed. Map ----- +----------------------------------------------------+ | | | | | | | | | | | | | | | | | | | | | | | | | | | ????????????????????????????????? | | ???????????????????????????????## | | ???????????????????????????#?## # | | ??????????????????????????? # | | ????????????????????##????? " # | | ???????????????###### #???? T # | | ??????????????? #??# " # | | ??????????????# """ #??# # | | ??????????????# """ #??# # | | ??????????????# """ #??# !! # | | ??????????????# #### !! # | | ??????????????# ]!! # # ! !# | | ??????????????# ]! #=@# # | | ??????????????# ]! %+[ Y # | | ??????????????# *#! # # | | ####??????????#####+#### ####### | | #######+########^### o#????? | | #????? | | T #????? | | ############+####+## #????? | | ########## # ## ##????? | | # # # ## #?????? | | # """ # =# ## #?????? | | # """ # "T" # ##= #?????? | | / """ # """=# ## ##????? | | # # *+ ![#=*[ #????? | | # """ #### ### !%+ =* #????? | | # """ #??###?#####! #????? | | # """ #??????????# = #????? | | # #??????????##+###????? | | ##########????????????????????? | | #?????????????????????????????? | | ??????????????????????????????? | | ??????????????????????????????? | | ??????????????????????????????? | | ??????????????????????????????? | | ??????????????????????????????? | +----------------------------------------------------+ Best States ------------- Heat Dissipation 28 Energy Generation 14 Energy Capacity 160 Matter Stores 300 Matter Capacity 300 Sight Range 16 Terrain Scan Density 10 Evasion (%) 44 Recoil Reduction 1 Item Schematics ----------------- None Robot Schematics ------------------ None Fabricated ------------ Nothing Alien Tech Used ----------------- None Achievements -------------- None Challenges ------------ None Game ------ Seed SiegeChromaticMinigun Manual? 0 Play Time 00:13:48 Cumulative 53.2 hours Start 2024.04.25 @ 20:27:48 End 2024.04.25 @ 20:40:51 Sessions 1 Manual Loads 0 Difficulty Rogue Special Mode None Game No. 75 Rogue 60 Adventurer 0 Explorer 15 Win Type - Total 0 Types 0/0/0/0/0/0/0/0/0 Lore% 31 Gallery% 39 Achievement% 28 Wizard Run 0 Options --------- Layout 1 ASCII 0 Keyboard 0 Movement Mouse Keybinds 0 Fullscreen 1 Font 24/Smallcaps Map View 50x35 Zoom Use 0% Tactical HUD 1 Map Filters NONE Filters NONE Steam 1 RUN: e63b91e0-4ed4-4f59-ad80-a6a5e259514d